[Event "Gibraltar Masters 18th"]
[Site "Gibraltar"]
[Date "2020.01.26"]
[Round "6.1"]
[White "Cheparinov, Ivan"]
[Black "Esipenko, Andrey"]
[Result "0-1"]
[ECO "E05"]
[WhiteElo "2686"]
[BlackElo "2654"]
[PlyCount "102"]
[EventDate "2020.01.21"]
[EventType "swiss"]
[EventRounds "10"]
[EventCountry "GGB"]
[SourceTitle "BritBase"]
[Source "John Saunders"]
[SourceDate "2021.06.05"]
[SourceVersion "1"]
[SourceVersionDate "2021.06.05"]
[SourceQuality "1"]
[TimeControl "40/100:0"]
[WhiteClock "0:11:07"]
[BlackClock "0:25:10"]

1. d4 {[%emt 0:00:00]} Nf6 {[%emt 0:00:00]} 2. c4 {[%emt 0:00:00]} e6 {[%emt 0:
00:00]} 3. g3 {[%emt 0:00:00]} d5 {[%emt 0:00:00]} 4. Nf3 {[%emt 0:00:00]} Be7
{[%emt 0:00:00]} 5. Bg2 {[%emt 0:00:00]} O-O {[%emt 0:00:00]} 6. O-O {[%emt 0:
00:00]} dxc4 {[%emt 0:00:00]} 7. Qc2 {[%emt 0:00:00]} a6 {[%emt 0:00:00]} 8. a4
{[%emt 0:00:00]} Bd7 {[%emt 0:00:00]} 9. Qxc4 {[%emt 0:00:00]} Bc6 {[%emt 0:00:
00]} 10. Bg5 {[%emt 0:00:00]} Nbd7 {[%emt 0:00:00]} 11. Nbd2 {[%emt 0:00:00]}
h6 {[%emt 0:00:00]} 12. Bxf6 {[%emt 0:00:00]} Nxf6 {[%emt 0:00:00]} 13. Rfd1 {
[%emt 0:00:00]} a5 {[%emt 0:00:00]} 14. Rac1 {[%emt 0:00:00]} Bd6 {[%emt 0:00:
00]} 15. Ne5 {[%emt 0:00:00]} Bxg2 {[%emt 0:00:00]} 16. Kxg2 {[%emt 0:00:00]}
c6 {[%emt 0:00:00]} 17. Nd3 {[%emt 0:00:00]} Qb6 {[%emt 0:00:00]} 18. Qb3 {
[%emt 0:00:00]} Qxb3 {[%emt 0:00:00]} 19. Nxb3 {[%emt 0:00:00]} Rfd8 {[%emt 0:
00:00]} 20. Kf3 {[%emt 0:00:00]} Nd5 {[%emt 0:00:00]} 21. Nbc5 {[%emt 0:00:00]}
Ra7 {[%emt 0:00:00]} 22. e4 {[%emt 0:00:00]} Ne7 {[%emt 0:00:00]} 23. Ke3 {
[%emt 0:00:00]} b6 {[%emt 0:00:00]} 24. Nb3 {[%emt 0:00:00]} Rad7 {[%emt 0:00:
00]} 25. Rd2 {[%emt 0:00:00]} f6 {[%emt 0:00:00]} 26. Rdc2 {[%emt 0:00:00]} Kf7
{[%emt 0:00:00]} 27. Ke2 {[%emt 0:00:00]} Bb8 {[%emt 0:00:00]} 28. Ne1 {
[%emt 0:00:00]} g5 {[%emt 0:00:00]} 29. Nf3 {[%emt 0:00:00]} Bd6 {[%emt 0:00:
00]} 30. h4 {[%emt 0:00:00]} g4 {[%emt 0:00:00]} 31. Nfd2 {[%emt 0:00:00]} Bb4
{[%emt 0:00:00]} 32. Nf1 {[%emt 0:00:00]} c5 {[%emt 0:00:00]} 33. dxc5 {
[%emt 0:00:00]} Rd3 {[%emt 0:00:00]} 34. Nbd2 {[%emt 0:00:00]} bxc5 {[%emt 0:
00:00]} 35. Nc4 {[%emt 0:00:00]} Nc6 {[%emt 0:00:00]} 36. Nfe3 {[%emt 0:00:00]}
h5 {[%emt 0:00:00]} 37. Rb1 {[%emt 0:00:00]} R3d4 {[%emt 0:00:00]} 38. e5 {
[%emt 0:00:00]} fxe5 {[%emt 0:00:00]} 39. Kf1 {[%emt 0:00:00]} Kf6 {[%emt 0:00:
00]} 40. Rcc1 {[%emt 0:00:00]} e4 {[%emt 0:00:00]} 41. Ng2 {[%emt 0:00:00]} e5
{[%emt 0:00:00]} 42. Nge3 {[%emt 0:00:00]} Ke6 {[%emt 0:00:00]} 43. Nd1 {
[%emt 0:00:00]} Bd2 {[%emt 0:00:00]} 44. Nxd2 {[%emt 0:00:00]} Rxd2 {[%emt 0:
00:00]} 45. Nc3 {[%emt 0:00:00]} Kf5 {[%emt 0:00:00]} 46. Re1 {[%emt 0:00:00]}
R8d4 {[%emt 0:00:00]} 47. Re2 {[%emt 0:00:00]} Rxe2 {[%emt 0:00:00]} 48. Kxe2 {
[%emt 0:00:00]} Rb4 {[%emt 0:00:00]} 49. Ke3 {[%emt 0:00:00]} Rb3 {[%emt 0:00:
00]} 50. Rd1 {[%emt 0:00:00]} Nd4 {[%emt 0:00:00]} 51. Rd2 {[%emt 0:00:00]} c4
{[%emt 0:00:00]} 0-1

[Event "Gibraltar Masters 18th"]
[Site "Gibraltar"]
[Date "2020.01.26"]
[Round "6.2"]
[White "Maghsoodloo, Parham"]
[Black "Paravyan, David"]
[Result "1/2-1/2"]
[ECO "D85"]
[WhiteElo "2674"]
[BlackElo "2629"]
[PlyCount "61"]
[EventDate "2020.01.21"]
[EventType "swiss"]
[EventRounds "10"]
[EventCountry "GGB"]
[SourceTitle "BritBase"]
[Source "John Saunders"]
[SourceDate "2021.06.05"]
[SourceVersion "1"]
[SourceVersionDate "2021.06.05"]
[SourceQuality "1"]
[TimeControl "40/100:0"]
[WhiteClock "0:27:37"]
[BlackClock "0:28:39"]

1. d4 {[%emt 0:00:00]} Nf6 {[%emt 0:00:00]} 2. c4 {[%emt 0:00:00]} g6 {[%emt 0:
00:00]} 3. Nc3 {[%emt 0:00:00]} d5 {[%emt 0:00:00]} 4. cxd5 {[%emt 0:00:00]}
Nxd5 {[%emt 0:00:00]} 5. e4 {[%emt 0:00:00]} Nxc3 {[%emt 0:00:00]} 6. bxc3 {
[%emt 0:00:00]} Bg7 {[%emt 0:00:00]} 7. Qa4+ {[%emt 0:00:00]} Nd7 {[%emt 0:00:
00]} 8. Nf3 {[%emt 0:00:00]} O-O {[%emt 0:00:00]} 9. Be2 {[%emt 0:00:00]} Nb6 {
[%emt 0:00:00]} 10. Qa5 {[%emt 0:00:00]} Bg4 {[%emt 0:00:00]} 11. O-O {[%emt 0:
00:00]} Qc8 {[%emt 0:00:00]} 12. h3 {[%emt 0:00:00]} Bxf3 {[%emt 0:00:00]} 13.
Bxf3 {[%emt 0:00:00]} e5 {[%emt 0:00:00]} 14. d5 {[%emt 0:00:00]} c6 {[%emt 0:
00:00]} 15. Rb1 {[%emt 0:00:00]} Re8 {[%emt 0:00:00]} 16. d6 {[%emt 0:00:00]}
Bf8 {[%emt 0:00:00]} 17. Bg4 {[%emt 0:00:00]} Qd8 {[%emt 0:00:00]} 18. d7 {
[%emt 0:00:00]} Nxd7 {[%emt 0:00:00]} 19. Qxd8 {[%emt 0:00:00]} Raxd8 {[%emt 0:
00:00]} 20. Rxb7 {[%emt 0:00:00]} Nc5 {[%emt 0:00:00]} 21. Rc7 {[%emt 0:00:00]}
Nxe4 {[%emt 0:00:00]} 22. Rxc6 {[%emt 0:00:00]} h5 {[%emt 0:00:00]} 23. Bf3 {
[%emt 0:00:00]} Nd2 {[%emt 0:00:00]} 24. Re1 {[%emt 0:00:00]} Nxf3+ {[%emt 0:
00:00]} 25. gxf3 {[%emt 0:00:00]} Rc8 {[%emt 0:00:00]} 26. Rxc8 {[%emt 0:00:00]
} Rxc8 {[%emt 0:00:00]} 27. Rxe5 {[%emt 0:00:00]} Bg7 {[%emt 0:00:00]} 28. Ra5
{[%emt 0:00:00]} Bxc3 {[%emt 0:00:00]} 29. Ra6 {[%emt 0:00:00]} Bd4 {[%emt 0:
00:00]} 30. Be3 {[%emt 0:00:03]} Bxe3 {[%emt 0:00:04]} 31. fxe3 {[%emt 0:00:00]
} 1/2-1/2

[Event "Gibraltar Masters 18th"]
[Site "Gibraltar"]
[Date "2020.01.26"]
[Round "6.3"]
[White "Praggnanandhaa, Rameshbabu"]
[Black "Topalov, Veselin"]
[Result "1-0"]
[ECO "C11"]
[WhiteElo "2602"]
[BlackElo "2738"]
[PlyCount "65"]
[EventDate "2020.01.21"]
[EventType "swiss"]
[EventRounds "10"]
[EventCountry "GGB"]
[SourceTitle "BritBase"]
[Source "John Saunders"]
[SourceDate "2021.06.05"]
[SourceVersion "1"]
[SourceVersionDate "2021.06.05"]
[SourceQuality "1"]
[TimeControl "40/100:0"]
[WhiteClock "0:07:26"]
[BlackClock "0:30:58"]

1. e4 {[%emt 0:00:00]} e6 {[%emt 0:00:00]} 2. d4 {[%emt 0:00:00]} d5 {[%emt 0:
00:00]} 3. Nc3 {[%emt 0:00:00]} Nf6 {[%emt 0:00:00]} 4. e5 {[%emt 0:00:00]}
Nfd7 {[%emt 0:00:00]} 5. f4 {[%emt 0:00:00]} c5 {[%emt 0:00:00]} 6. Nf3 {
[%emt 0:00:00]} Be7 {[%emt 0:00:00]} 7. Be3 {[%emt 0:00:00]} b6 {[%emt 0:00:00]
} 8. Qd2 {[%emt 0:00:00]} Nc6 {[%emt 0:00:00]} 9. Be2 {[%emt 0:00:00]} O-O {
[%emt 0:00:00]} 10. O-O {[%emt 0:00:00]} cxd4 {[%emt 0:00:00]} 11. Nxd4 {
[%emt 0:00:00]} Nxd4 {[%emt 0:00:00]} 12. Bxd4 {[%emt 0:00:00]} Nb8 {[%emt 0:
00:00]} 13. Bf2 {[%emt 0:00:00]} Ba6 {[%emt 0:00:00]} 14. Bxa6 {[%emt 0:00:00]}
Nxa6 {[%emt 0:00:00]} 15. f5 {[%emt 0:00:00]} exf5 {[%emt 0:00:00]} 16. Nxd5 {
[%emt 0:00:00]} Nb4 {[%emt 0:00:00]} 17. c4 {[%emt 0:00:00]} Rc8 {[%emt 0:00:
00]} 18. a3 {[%emt 0:00:00]} Nc6 {[%emt 0:00:00]} 19. Rfe1 {[%emt 0:00:00]} Bc5
{[%emt 0:00:00]} 20. b4 {[%emt 0:00:00]} Bxf2+ {[%emt 0:00:00]} 21. Qxf2 {
[%emt 0:00:00]} Qd7 {[%emt 0:00:00]} 22. Qh4 {[%emt 0:00:00]} Qd8 {[%emt 0:00:
00]} 23. Nf6+ {[%emt 0:00:00]} gxf6 {[%emt 0:00:00]} 24. Rad1 {[%emt 0:00:00]}
Nxe5 {[%emt 0:00:00]} 25. Rxd8 {[%emt 0:00:00]} Rfxd8 {[%emt 0:00:00]} 26. Qxf6
{[%emt 0:00:00]} Ng6 {[%emt 0:00:00]} 27. h4 {[%emt 0:00:00]} h5 {[%emt 0:00:
00]} 28. Rf1 {[%emt 0:00:00]} f4 {[%emt 0:00:00]} 29. g4 {[%emt 0:00:00]} Rd3 {
[%emt 0:00:00]} 30. gxh5 {[%emt 0:00:00]} Rg3+ {[%emt 0:00:00]} 31. Kf2 {
[%emt 0:00:00]} Nxh4 {[%emt 0:00:00]} 32. Qxh4 {[%emt 0:00:00]} Rxc4 {[%emt 0:
00:00]} 33. Re1 {[%emt 0:00:00]} 1-0

[Event "Gibraltar Masters 18th"]
[Site "Gibraltar"]
[Date "2020.01.26"]
[Round "6.4"]
[White "Antipov, Mikhail Al."]
[Black "Jones, Gawain C B"]
[Result "1-0"]
[ECO "C54"]
[WhiteElo "2562"]
[BlackElo "2679"]
[PlyCount "99"]
[EventDate "2020.01.21"]
[EventType "swiss"]
[EventRounds "10"]
[EventCountry "GGB"]
[SourceTitle "BritBase"]
[Source "John Saunders"]
[SourceDate "2021.06.05"]
[SourceVersion "1"]
[SourceVersionDate "2021.06.05"]
[SourceQuality "1"]
[TimeControl "40/100:0"]
[WhiteClock "0:50:12"]
[BlackClock "0:42:56"]

1. e4 {[%emt 0:00:00]} e5 {[%emt 0:00:00]} 2. Nf3 {[%emt 0:00:00]} Nc6 {
[%emt 0:00:00]} 3. Bc4 {[%emt 0:00:00]} Nf6 {[%emt 0:00:00]} 4. d3 {[%emt 0:00:
00]} Bc5 {[%emt 0:00:00]} 5. O-O {[%emt 0:00:00]} d6 {[%emt 0:00:00]} 6. c3 {
[%emt 0:00:00]} a5 {[%emt 0:00:00]} 7. Re1 {[%emt 0:00:00]} O-O {[%emt 0:00:00]
} 8. h3 {[%emt 0:00:00]} Be6 {[%emt 0:00:00]} 9. Bb5 {[%emt 0:00:00]} Bd7 {
[%emt 0:00:00]} 10. a4 {[%emt 0:00:00]} Ba7 {[%emt 0:00:00]} 11. Nbd2 {[%emt 0:
00:00]} Ne7 {[%emt 0:00:00]} 12. d4 {[%emt 0:00:00]} Ng6 {[%emt 0:00:00]} 13.
Bd3 {[%emt 0:00:00]} c6 {[%emt 0:00:00]} 14. Nf1 {[%emt 0:00:00]} Nh5 {[%emt 0:
00:00]} 15. Be3 {[%emt 0:00:00]} Nhf4 {[%emt 0:00:00]} 16. Ng3 {[%emt 0:00:00]}
exd4 {[%emt 0:00:00]} 17. cxd4 {[%emt 0:00:00]} d5 {[%emt 0:00:00]} 18. e5 {
[%emt 0:00:00]} Nxd3 {[%emt 0:00:00]} 19. Qxd3 {[%emt 0:00:00]} f6 {[%emt 0:00:
00]} 20. Re2 {[%emt 0:00:00]} f5 {[%emt 0:00:00]} 21. Bg5 {[%emt 0:00:00]} Qc8
{[%emt 0:00:00]} 22. Nh5 {[%emt 0:00:00]} f4 {[%emt 0:00:00]} 23. Rae1 {
[%emt 0:00:00]} Bf5 {[%emt 0:00:00]} 24. Qb3 {[%emt 0:00:00]} Be6 {[%emt 0:00:
00]} 25. Bf6 {[%emt 0:00:00]} gxf6 {[%emt 0:00:00]} 26. exf6 {[%emt 0:00:00]}
Bf5 {[%emt 0:00:00]} 27. Ng5 {[%emt 0:00:00]} h6 {[%emt 0:00:00]} 28. Re8 {
[%emt 0:00:00]} hxg5 {[%emt 0:00:00]} 29. Rxc8 {[%emt 0:00:00]} Raxc8 {[%emt 0:
00:00]} 30. Ng7 {[%emt 0:00:00]} Nh4 {[%emt 0:00:00]} 31. Nxf5 {[%emt 0:00:04]}
Nxf5 {[%emt 0:00:00]} 32. Qxb7 {[%emt 0:00:00]} Bxd4 {[%emt 0:00:00]} 33. Qd7 {
[%emt 0:00:00]} Bxf6 {[%emt 0:00:00]} 34. Qxf5 {[%emt 0:00:00]} Rc7 {[%emt 0:
00:00]} 35. Re6 {[%emt 0:00:00]} Bxb2 {[%emt 0:00:00]} 36. Qxg5+ {[%emt 0:00:
00]} Rg7 {[%emt 0:00:00]} 37. Qh5 {[%emt 0:00:00]} f3 {[%emt 0:00:00]} 38. g4 {
[%emt 0:00:00]} Rd7 {[%emt 0:00:00]} 39. Rxc6 {[%emt 0:00:00]} Bg7 {[%emt 0:00:
00]} 40. Qg6 {[%emt 0:00:00]} Re7 {[%emt 0:00:00]} 41. Rd6 {[%emt 0:01:58]}
Rfe8 {[%emt 0:01:01]} 42. Rxd5 {[%emt 0:00:00]} Re6 {[%emt 0:00:00]} 43. Qd3 {
[%emt 0:00:00]} Re1+ {[%emt 0:00:00]} 44. Kh2 {[%emt 0:00:00]} Be5+ {[%emt 0:
00:00]} 45. Rxe5 {[%emt 0:00:00]} R1xe5 {[%emt 0:00:00]} 46. Qg6+ {[%emt 0:00:
00]} Kf8 {[%emt 0:00:00]} 47. Qf6+ {[%emt 0:00:00]} Kg8 {[%emt 0:00:00]} 48.
Kg3 {[%emt 0:00:00]} Rc5 {[%emt 0:00:00]} 49. Qg6+ {[%emt 0:00:00]} Kf8 {
[%emt 0:00:00]} 50. Qd6+ {[%emt 0:00:00]} 1-0

[Event "Gibraltar Masters 18th"]
[Site "Gibraltar"]
[Date "2020.01.26"]
[Round "6.5"]
[White "Narayanan, SL."]
[Black "Yuffa, Daniil"]
[Result "1/2-1/2"]
[ECO "B12"]
[WhiteElo "2637"]
[BlackElo "2566"]
[PlyCount "59"]
[EventDate "2020.01.21"]
[EventType "swiss"]
[EventRounds "10"]
[EventCountry "GGB"]
[SourceTitle "BritBase"]
[Source "John Saunders"]
[SourceDate "2021.06.05"]
[SourceVersion "1"]
[SourceVersionDate "2021.06.05"]
[SourceQuality "1"]
[TimeControl "40/100:0"]
[WhiteClock "0:20:32"]
[BlackClock "0:36:28"]

1. e4 {[%emt 0:00:00]} c6 {[%emt 0:00:00]} 2. d4 {[%emt 0:00:00]} d5 {[%emt 0:
00:00]} 3. e5 {[%emt 0:00:00]} Bf5 {[%emt 0:00:00]} 4. h4 {[%emt 0:00:00]} h5 {
[%emt 0:00:00]} 5. Bd3 {[%emt 0:00:00]} Bxd3 {[%emt 0:00:00]} 6. Qxd3 {[%emt 0:
00:00]} Qa5+ {[%emt 0:00:00]} 7. Nd2 {[%emt 0:00:00]} e6 {[%emt 0:00:00]} 8.
Ngf3 {[%emt 0:00:00]} Ne7 {[%emt 0:00:00]} 9. O-O {[%emt 0:00:00]} Nf5 {
[%emt 0:00:00]} 10. a4 {[%emt 0:00:00]} Be7 {[%emt 0:00:00]} 11. Nb3 {[%emt 0:
00:00]} Qa6 {[%emt 0:00:00]} 12. Qd1 {[%emt 0:00:00]} Nd7 {[%emt 0:00:00]} 13.
g3 {[%emt 0:00:00]} c5 {[%emt 0:00:00]} 14. dxc5 {[%emt 0:00:00]} Nxc5 {
[%emt 0:00:00]} 15. Nbd4 {[%emt 0:00:00]} Nxd4 {[%emt 0:00:00]} 16. Nxd4 {
[%emt 0:00:00]} Ne4 {[%emt 0:00:00]} 17. Kg2 {[%emt 0:00:00]} Rc8 {[%emt 0:00:
00]} 18. Be3 {[%emt 0:00:00]} Qc4 {[%emt 0:00:00]} 19. f3 {[%emt 0:00:00]} Nc5
{[%emt 0:00:00]} 20. Re1 {[%emt 0:00:00]} a6 {[%emt 0:00:00]} 21. Bf2 {[%emt 0:
00:00]} Nd7 {[%emt 0:00:00]} 22. c3 {[%emt 0:00:00]} g6 {[%emt 0:00:00]} 23. a5
{[%emt 0:00:00]} Qc7 {[%emt 0:00:00]} 24. Qe2 {[%emt 0:00:00]} Qd8 {[%emt 0:00:
00]} 25. Qc2 {[%emt 0:00:00]} Rg8 {[%emt 0:00:00]} 26. Ra4 {[%emt 0:00:00]} Nc5
{[%emt 0:00:00]} 27. Raa1 {[%emt 0:00:00]} Nd7 {[%emt 0:00:00]} 28. Ra4 {
[%emt 0:00:00]} Nc5 {[%emt 0:00:00]} 29. Raa1 {[%emt 0:00:00]} Nd7 {[%emt 0:00:
00]} 30. Ra4 {[%emt 0:00:00]} 1/2-1/2

[Event "Gibraltar Masters 18th"]
[Site "Gibraltar"]
[Date "2020.01.26"]
[Round "6.6"]
[White "Kobalia, Mikhail"]
[Black "Hjartarson, Johann"]
[Result "1-0"]
[ECO "B07"]
[WhiteElo "2609"]
[BlackElo "2524"]
[PlyCount "55"]
[EventDate "2020.01.21"]
[EventType "swiss"]
[EventRounds "10"]
[EventCountry "GGB"]
[SourceTitle "BritBase"]
[Source "John Saunders"]
[SourceDate "2021.06.05"]
[SourceVersion "1"]
[SourceVersionDate "2021.06.05"]
[SourceQuality "1"]
[TimeControl "40/100:0"]
[WhiteClock "0:34:42"]
[BlackClock "0:28:04"]

1. e4 {[%emt 0:00:00]} g6 {[%emt 0:00:00]} 2. d4 {[%emt 0:00:00]} Bg7 {[%emt 0:
00:00]} 3. Nf3 {[%emt 0:00:00]} d6 {[%emt 0:00:00]} 4. Bc4 {[%emt 0:00:00]} Nf6
{[%emt 0:00:00]} 5. Qe2 {[%emt 0:00:00]} O-O {[%emt 0:00:00]} 6. Nbd2 {[%emt 0:
00:00]} Bg4 {[%emt 0:00:00]} 7. h3 {[%emt 0:00:00]} Bxf3 {[%emt 0:00:00]} 8.
Nxf3 {[%emt 0:00:00]} Nc6 {[%emt 0:00:00]} 9. e5 {[%emt 0:00:00]} dxe5 {
[%emt 0:00:00]} 10. dxe5 {[%emt 0:00:00]} Nd5 {[%emt 0:00:00]} 11. Bg5 {
[%emt 0:00:00]} Nb6 {[%emt 0:00:00]} 12. Rd1 {[%emt 0:00:00]} Qe8 {[%emt 0:00:
00]} 13. Bd3 {[%emt 0:00:00]} f5 {[%emt 0:00:00]} 14. exf6 {[%emt 0:00:00]}
exf6 {[%emt 0:00:00]} 15. Be3 {[%emt 0:00:00]} Nb4 {[%emt 0:00:00]} 16. Bc4+ {
[%emt 0:00:00]} Kh8 {[%emt 0:00:00]} 17. O-O {[%emt 0:00:00]} Nxc4 {[%emt 0:00:
00]} 18. Qxc4 {[%emt 0:00:00]} Nc6 {[%emt 0:00:00]} 19. Bc5 {[%emt 0:00:00]}
Qf7 {[%emt 0:00:00]} 20. Qb5 {[%emt 0:00:00]} Rfb8 {[%emt 0:00:00]} 21. Nd4 {
[%emt 0:00:00]} Qxa2 {[%emt 0:00:00]} 22. Nxc6 {[%emt 0:00:00]} bxc6 {[%emt 0:
00:00]} 23. Qxc6 {[%emt 0:00:00]} Qxb2 {[%emt 0:00:00]} 24. Rd7 {[%emt 0:00:00]
} f5 {[%emt 0:00:00]} 25. Re1 {[%emt 0:00:00]} Rg8 {[%emt 0:00:00]} 26. Rxg7 {
[%emt 0:00:00]} Qxg7 {[%emt 0:00:00]} 27. Bb4 {[%emt 0:00:00]} Rad8 {[%emt 0:
00:00]} 28. Bc3 {[%emt 0:00:00]} 1-0

[Event "Gibraltar Masters 18th"]
[Site "Gibraltar"]
[Date "2020.01.26"]
[Round "6.7"]
[White "Kotronias, Vasilios"]
[Black "Pichot, Alan"]
[Result "0-1"]
[ECO "C88"]
[WhiteElo "2526"]
[BlackElo "2606"]
[PlyCount "72"]
[EventDate "2020.01.21"]
[EventType "swiss"]
[EventRounds "10"]
[EventCountry "GGB"]
[SourceTitle "BritBase"]
[Source "John Saunders"]
[SourceDate "2021.06.05"]
[SourceVersion "1"]
[SourceVersionDate "2021.06.05"]
[SourceQuality "1"]
[TimeControl "40/100:0"]
[WhiteClock "0:00:50"]
[BlackClock "0:06:53"]

1. e4 {[%emt 0:00:00]} e5 {[%emt 0:00:00]} 2. Nf3 {[%emt 0:00:00]} Nc6 {
[%emt 0:00:00]} 3. Bb5 {[%emt 0:00:00]} a6 {[%emt 0:00:00]} 4. Ba4 {[%emt 0:00:
00]} Nf6 {[%emt 0:00:00]} 5. O-O {[%emt 0:00:00]} b5 {[%emt 0:00:00]} 6. Bb3 {
[%emt 0:00:00]} Bb7 {[%emt 0:00:00]} 7. d3 {[%emt 0:00:00]} Be7 {[%emt 0:00:00]
} 8. Nbd2 {[%emt 0:00:00]} O-O {[%emt 0:00:00]} 9. Re1 {[%emt 0:00:00]} d6 {
[%emt 0:00:00]} 10. a3 {[%emt 0:00:00]} Qd7 {[%emt 0:00:00]} 11. Nf1 {[%emt 0:
00:00]} Nd8 {[%emt 0:00:00]} 12. Ng3 {[%emt 0:00:00]} Ne6 {[%emt 0:00:00]} 13.
Nf5 {[%emt 0:00:00]} Bd8 {[%emt 0:00:00]} 14. c3 {[%emt 0:00:00]} c5 {[%emt 0:
00:00]} 15. Bc2 {[%emt 0:00:00]} g6 {[%emt 0:00:00]} 16. Ng3 {[%emt 0:00:00]}
Re8 {[%emt 0:00:00]} 17. a4 {[%emt 0:00:00]} h5 {[%emt 0:00:00]} 18. h3 {
[%emt 0:00:00]} Bc7 {[%emt 0:00:00]} 19. axb5 {[%emt 0:00:00]} axb5 {[%emt 0:
00:00]} 20. Rxa8 {[%emt 0:00:00]} Bxa8 {[%emt 0:00:00]} 21. Ng5 {[%emt 0:00:00]
} d5 {[%emt 0:00:00]} 22. Nxe6 {[%emt 0:00:00]} Rxe6 {[%emt 0:00:00]} 23. exd5
{[%emt 0:00:00]} Bxd5 {[%emt 0:00:00]} 24. Ne4 {[%emt 0:00:00]} Qc6 {[%emt 0:
00:00]} 25. b3 {[%emt 0:00:00]} c4 {[%emt 0:00:00]} 26. bxc4 {[%emt 0:00:00]}
bxc4 {[%emt 0:00:00]} 27. Bg5 {[%emt 0:00:00]} Nh7 {[%emt 0:00:00]} 28. dxc4 {
[%emt 0:00:00]} Qxc4 {[%emt 0:00:00]} 29. Bh6 {[%emt 0:00:00]} Nf6 {[%emt 0:00:
00]} 30. Nxf6+ {[%emt 0:00:00]} Rxf6 {[%emt 0:00:00]} 31. Bg5 {[%emt 0:00:09]}
Re6 {[%emt 0:00:00]} 32. Qd2 {[%emt 0:00:25]} Qc6 {[%emt 0:00:00]} 33. Ba4 {
[%emt 0:00:13]} Qa8 {[%emt 0:00:00]} 34. Re3 {[%emt 0:00:16]} Bxg2 {[%emt 0:00:
00]} 35. Qd7 {[%emt 0:00:00]} Bb6 {[%emt 0:00:00]} 36. Bb3 {[%emt 0:00:00]} Bc6
{[%emt 0:00:00]} 0-1

[Event "Gibraltar Masters 18th"]
[Site "Gibraltar"]
[Date "2020.01.26"]
[Round "6.8"]
[White "Mamedyarov, Shakhriyar"]
[Black "Aryan, Chopra"]
[Result "1/2-1/2"]
[ECO "D85"]
[WhiteElo "2770"]
[BlackElo "2562"]
[PlyCount "67"]
[EventDate "2020.01.21"]
[EventType "swiss"]
[EventRounds "10"]
[EventCountry "GGB"]
[SourceTitle "BritBase"]
[Source "John Saunders"]
[SourceDate "2021.06.05"]
[SourceVersion "1"]
[SourceVersionDate "2021.06.05"]
[SourceQuality "1"]
[TimeControl "40/100:0"]
[WhiteClock "0:54:28"]
[BlackClock "0:24:29"]

1. d4 {[%emt 0:00:00]} Nf6 {[%emt 0:00:00]} 2. c4 {[%emt 0:00:00]} g6 {[%emt 0:
00:00]} 3. Nc3 {[%emt 0:00:00]} d5 {[%emt 0:00:00]} 4. cxd5 {[%emt 0:00:00]}
Nxd5 {[%emt 0:00:00]} 5. e4 {[%emt 0:00:00]} Nxc3 {[%emt 0:00:00]} 6. bxc3 {
[%emt 0:00:00]} Bg7 {[%emt 0:00:00]} 7. Nf3 {[%emt 0:00:00]} c5 {[%emt 0:00:00]
} 8. Bb5+ {[%emt 0:00:00]} Nc6 {[%emt 0:00:00]} 9. Rb1 {[%emt 0:00:00]} O-O {
[%emt 0:00:00]} 10. d5 {[%emt 0:00:00]} Bxc3+ {[%emt 0:00:00]} 11. Bd2 {
[%emt 0:00:00]} Bxd2+ {[%emt 0:00:00]} 12. Qxd2 {[%emt 0:00:00]} Nd4 {[%emt 0:
00:00]} 13. Nxd4 {[%emt 0:00:00]} cxd4 {[%emt 0:00:00]} 14. Qxd4 {[%emt 0:00:
00]} Qa5+ {[%emt 0:00:00]} 15. Qd2 {[%emt 0:00:00]} Qxd2+ {[%emt 0:00:00]} 16.
Kxd2 {[%emt 0:00:00]} Rd8 {[%emt 0:00:00]} 17. Ke3 {[%emt 0:00:00]} a6 {
[%emt 0:00:00]} 18. Bc4 {[%emt 0:00:00]} b5 {[%emt 0:00:00]} 19. Bb3 {[%emt 0:
00:00]} Bd7 {[%emt 0:00:00]} 20. Rhc1 {[%emt 0:00:00]} Kf8 {[%emt 0:00:00]} 21.
Rc7 {[%emt 0:00:00]} a5 {[%emt 0:00:00]} 22. a3 {[%emt 0:00:00]} Ke8 {[%emt 0:
00:00]} 23. Rbc1 {[%emt 0:00:00]} Rdb8 {[%emt 0:00:00]} 24. e5 {[%emt 0:00:00]}
Ra6 {[%emt 0:00:00]} 25. f4 {[%emt 0:00:00]} Kd8 {[%emt 0:00:00]} 26. R7c5 {
[%emt 0:00:00]} a4 {[%emt 0:00:00]} 27. Ba2 {[%emt 0:00:00]} b4 {[%emt 0:00:00]
} 28. Bc4 {[%emt 0:00:00]} Rab6 {[%emt 0:00:00]} 29. axb4 {[%emt 0:00:00]} Rxb4
{[%emt 0:00:00]} 30. e6 {[%emt 0:00:00]} fxe6 {[%emt 0:00:00]} 31. dxe6 {
[%emt 0:00:00]} Rc8 {[%emt 0:00:00]} 32. Bd5 {[%emt 0:00:00]} Rxc5 {[%emt 0:00:
00]} 33. Rxc5 {[%emt 0:00:00]} Rb5 {[%emt 0:00:00]} 34. Kd4 {[%emt 0:00:00]}
1/2-1/2

[Event "Gibraltar Masters 18th"]
[Site "Gibraltar"]
[Date "2020.01.26"]
[Round "6.9"]
[White "Vachier-Lagrave, Maxime"]
[Black "Peralta, Fernando"]
[Result "1-0"]
[ECO "C02"]
[WhiteElo "2770"]
[BlackElo "2574"]
[PlyCount "65"]
[EventDate "2020.01.21"]
[EventType "swiss"]
[EventRounds "10"]
[EventCountry "GGB"]
[SourceTitle "BritBase"]
[Source "John Saunders"]
[SourceDate "2021.06.05"]
[SourceVersion "1"]
[SourceVersionDate "2021.06.05"]
[SourceQuality "1"]
[TimeControl "40/100:0"]
[WhiteClock "0:57:05"]
[BlackClock "0:06:44"]

1. e4 {[%emt 0:00:00]} e6 {[%emt 0:00:00]} 2. d4 {[%emt 0:00:00]} d5 {[%emt 0:
00:00]} 3. e5 {[%emt 0:00:00]} c5 {[%emt 0:00:00]} 4. c3 {[%emt 0:00:00]} Nc6 {
[%emt 0:00:00]} 5. Nf3 {[%emt 0:00:00]} Qb6 {[%emt 0:00:00]} 6. Be2 {[%emt 0:
00:00]} cxd4 {[%emt 0:00:00]} 7. cxd4 {[%emt 0:00:00]} Nge7 {[%emt 0:00:00]} 8.
Na3 {[%emt 0:00:00]} Nf5 {[%emt 0:00:00]} 9. Nc2 {[%emt 0:00:00]} Bd7 {[%emt 0:
00:00]} 10. O-O {[%emt 0:00:00]} Na5 {[%emt 0:00:00]} 11. h4 {[%emt 0:00:00]}
h5 {[%emt 0:00:00]} 12. Ne3 {[%emt 0:00:00]} Nxe3 {[%emt 0:00:00]} 13. fxe3 {
[%emt 0:00:00]} Be7 {[%emt 0:00:00]} 14. Ng5 {[%emt 0:00:00]} Bxg5 {[%emt 0:00:
00]} 15. hxg5 {[%emt 0:00:00]} Nc6 {[%emt 0:00:00]} 16. Bxh5 {[%emt 0:00:00]}
g6 {[%emt 0:00:00]} 17. Be2 {[%emt 0:00:00]} Rh7 {[%emt 0:00:00]} 18. Qb3 {
[%emt 0:00:00]} Qc7 {[%emt 0:00:00]} 19. Bd2 {[%emt 0:00:00]} O-O-O {[%emt 0:
00:00]} 20. Rf6 {[%emt 0:00:00]} Rdh8 {[%emt 0:00:00]} 21. Kf2 {[%emt 0:00:00]}
Kb8 {[%emt 0:00:00]} 22. Qa3 {[%emt 0:00:00]} Be8 {[%emt 0:00:00]} 23. Rc1 {
[%emt 0:00:00]} Rh1 {[%emt 0:00:00]} 24. Rc2 {[%emt 0:00:00]} Rb1 {[%emt 0:00:
00]} 25. Qd6 {[%emt 0:00:00]} Qxd6 {[%emt 0:00:00]} 26. exd6 {[%emt 0:00:00]}
Kc8 {[%emt 0:00:00]} 27. b4 {[%emt 0:00:00]} Kd7 {[%emt 0:00:00]} 28. b5 {
[%emt 0:00:00]} Nb4 {[%emt 0:00:00]} 29. Rc7+ {[%emt 0:00:00]} Kxd6 {[%emt 0:
00:00]} 30. Rxb7 {[%emt 0:00:00]} Nxa2 {[%emt 0:00:00]} 31. e4 {[%emt 0:00:00]}
dxe4 {[%emt 0:00:00]} 32. Bf4+ {[%emt 0:00:00]} Kd5 {[%emt 0:00:00]} 33. Rc7 {
[%emt 0:00:00]} 1-0